[Event "Minior-SM 2025"]
[Site "Uppsala, Sweden"]
[Date "2025.07.01"]
[Round "2.2"]
[White "Modig, Ville"]
[Black "Sun Aslund, Bruce"]
[Result "1-0"]
[TimeControl "90 min for 40 move + 30 min with an increment of 30 sec starting move 1"]
[WhiteFideId "1777858"]
[BlackFideId "1785010"]
[WhiteElo "1585"]
[BlackElo "1759"]

1. e4 {[%clk 01:30:57]} {[%emt 00:00:02]} e6 {[%clk 01:30:28]} {[%emt
00:00:32]} 2. d4 {[%clk 01:31:16]} {[%emt 00:00:11]} d5 {[%clk 01:30:49]}
{[%emt 00:00:09]} 3. exd5 {[%clk 01:31:38]} {[%emt 00:00:08]} exd5 {[%clk
01:31:10]} {[%emt 00:00:09]} 4. Nf3 {[%clk 01:31:42]} {[%emt 00:00:25]} Bd6
{[%clk 01:30:51]} {[%emt 00:00:49]} 5. Bd3 {[%clk 01:31:16]} {[%emt 00:00:56]}
Ne7 {[%clk 01:28:01]} {[%emt 00:03:20]} 6. O-O {[%clk 01:31:21]} {[%emt
00:00:24]} O-O {[%clk 01:24:17]} {[%emt 00:04:15]} 7. Be3 {[%clk 01:30:23]}
{[%emt 00:01:28]} Bf5 {[%clk 01:23:32]} {[%emt 00:01:15]} 8. c3 {[%clk
01:28:59]} {[%emt 00:01:55]} Nd7 {[%clk 01:17:51]} {[%emt 00:06:10]} 9. Qc2
{[%clk 01:28:54]} {[%emt 00:00:34]} Bxd3 {[%clk 01:05:24]} {[%emt 00:12:58]} 10.
Qxd3 {[%clk 01:28:53]} {[%emt 00:00:31]} g6 {[%clk 01:02:55]} {[%emt 00:03:00]}
11. Re1 {[%clk 01:27:47]} {[%emt 00:01:35]} Nf5 {[%clk 01:00:53]} {[%emt
00:02:32]} 12. Nbd2 {[%clk 01:25:02]} {[%emt 00:03:15]} Nxe3 {[%clk 00:46:14]}
{[%emt 00:15:09]} 13. Qxe3 {[%clk 01:24:03]} {[%emt 00:01:29]} Re8 {[%clk
00:43:39]} {[%emt 00:03:05]} 14. Qd3 {[%clk 01:22:08]} {[%emt 00:02:22]} Nf6
{[%clk 00:32:06]} {[%emt 00:12:06]} 15. h3 {[%clk 01:19:17]} {[%emt 00:03:21]}
Qd7 {[%clk 00:28:30]} {[%emt 00:04:06]} 16. Rad1 {[%clk 01:15:31]} {[%emt
00:04:15]} c6 {[%clk 00:25:25]} {[%emt 00:03:36]} 17. Ne5 {[%clk 01:13:18]}
{[%emt 00:02:42]} Qf5 {[%clk 00:25:05]} {[%emt 00:00:51]} 18. Qxf5 {[%clk
01:11:39]} {[%emt 00:02:09]} gxf5 {[%clk 00:25:27]} {[%emt 00:00:08]} 19. Ndf3
{[%clk 01:10:19]} {[%emt 00:01:50]} Ne4 {[%clk 00:24:21]} {[%emt 00:01:36]} 20.
Nh4 {[%clk 00:59:40]} {[%emt 00:11:08]} f6 {[%clk 00:20:02]} {[%emt 00:04:50]}
21. Nd3 {[%clk 00:58:54]} {[%emt 00:01:17]} f4 {[%clk 00:17:45]} {[%emt
00:02:46]} 22. Nf5 {[%clk 00:56:45]} {[%emt 00:02:38]} Bc7 {[%clk 00:16:52]}
{[%emt 00:01:24]} 23. Re2 {[%clk 00:50:06]} {[%emt 00:07:09]} Nd6 {[%clk
00:15:28]} {[%emt 00:01:54]} 24. Re4 {[%emt 00:01:13]} Re6 25. Rxe6 {[%clk
00:49:21]} Rd8 {[%emt 00:00:09]} 26. Re8+ Rxe8 {[%clk 00:15:51]} 27. Nxd6
{[%clk 00:48:30]} {[%emt 00:01:21]} Bxd6 {[%clk 00:16:14]} {[%emt 00:00:08]} 28.
Kf1 {[%clk 00:48:49]} {[%emt 00:00:10]} Kf7 {[%clk 00:15:23]} {[%emt 00:01:21]}
29. Rd2 {[%clk 00:46:43]} {[%emt 00:02:35]} a5 {[%clk 00:10:30]} {[%emt
00:05:24]} 30. Re2 {[%clk 00:43:58]} {[%emt 00:03:16]} Rg8 {[%clk 00:10:40]}
{[%emt 00:00:19]} 31. f3 {[%clk 00:42:53]} {[%emt 00:01:35]} b5 {[%clk
00:09:09]} {[%emt 00:02:01]} 32. Kf2 {[%clk 00:41:14]} {[%emt 00:02:09]} Rb8
{[%clk 00:08:03]} {[%emt 00:01:36]} 33. a3 {[%clk 00:40:44]} {[%emt 00:01:00]}
b4 {[%clk 00:07:05]} {[%emt 00:01:28]} 34. axb4 {[%clk 00:40:00]} {[%emt
00:01:14]} axb4 {[%clk 00:07:28]} {[%emt 00:00:07]} 35. cxb4 {[%clk 00:39:59]}
{[%emt 00:00:31]} Bxb4 {[%clk 00:05:41]} {[%emt 00:02:17]} 36. Nxf4 {[%clk
00:40:18]} {[%emt 00:00:11]} c5 {[%clk 00:04:29]} {[%emt 00:01:42]} 37. Nxd5
{[%clk 00:39:50]} {[%emt 00:00:58]} cxd4 {[%clk 00:04:47]} {[%emt 00:00:12]} 38.
Nxb4 {[%clk 00:39:55]} {[%emt 00:00:24]} Rxb4 {[%clk 00:05:02]} {[%emt
00:00:16]} 39. Rd2 {[%clk 00:39:08]} {[%emt 00:01:17]} Ke6 {[%clk 00:05:26]}
{[%emt 00:00:06]} 40. Ke2 {[%clk 00:38:23]} {[%emt 00:01:15]} Kd5 {[%clk
00:05:41]} {[%emt 00:00:16]} 41. Kd3 {[%clk 00:38:08]} {[%emt 00:00:44]} Rb3+
{[%clk 00:05:56]} {[%emt 00:00:15]} 42. Kc2 {[%clk 00:38:08]} {[%emt 00:00:29]}
Kc4 {[%clk 00:05:42]} {[%emt 00:00:44]} 43. Rxd4+ {[%clk 00:38:25]} {[%emt
00:00:14]} Kxd4 {[%clk 00:05:36]} {[%emt 00:00:36]} 44. Kxb3 {[%clk 00:38:45]}
{[%emt 00:00:11]} Ke3 {[%clk 00:05:40]} {[%emt 00:00:25]} 45. Kc4 {[%clk
00:38:58]} {[%emt 00:00:17]} Kf2 {[%clk 00:05:57]} {[%emt 00:00:13]} 46. b4
{[%clk 00:38:30]} {[%emt 00:00:58]} Kxg2 {[%clk 00:06:11]} {[%emt 00:00:16]} 47.
b5 {[%clk 00:38:55]} {[%emt 00:00:06]} Kxf3 {[%clk 00:06:39]} {[%emt 00:00:01]}
48. b6 {[%clk 00:39:23]} {[%emt 00:00:02]} Kg3 {[%clk 00:06:17]} {[%emt
00:00:52]} 49. b7 {[%clk 00:39:49]} {[%emt 00:00:04]} Kxh3 {[%clk 00:06:45]}
{[%emt 00:00:02]} 50. b8=Q {[%clk 00:40:07]} {[%emt 00:00:12]} h5 {[%clk
00:06:48]} {[%emt 00:00:27]} 51. Qf4 {[%clk 00:40:14]} {[%emt 00:00:22]} h4
{[%clk 00:07:15]} {[%emt 00:00:03]} 52. Kd4 {[%clk 00:40:09]} {[%emt 00:00:35]}
1-0

[Event "Minior-SM 2025"]
[Site "Uppsala, Sweden"]
[Date "2025.07.01"]
[Round "2.3"]
[White "Efimova, Paulina"]
[Black "Dahlin, Emil"]
[Result "0-1"]
[TimeControl "90 min for 40 move + 30 min with an increment of 30 sec starting move 1"]
[WhiteFideId "1772155"]
[BlackFideId "1771035"]
[WhiteElo "1581"]
[BlackElo "1657"]

1. d4 {[%clk 01:30:55]} {[%emt 00:00:04]} f5 {[%clk 01:30:55]} {[%emt
00:00:06]} 2. Bf4 {[%clk 01:30:46]} {[%emt 00:00:39]} Nf6 {[%clk 01:31:17]}
{[%emt 00:00:07]} 3. c3 {[%clk 01:30:02]} {[%emt 00:01:16]} g6 {[%clk
01:31:02]} {[%emt 00:00:44]} 4. e3 {[%clk 01:28:08]} {[%emt 00:02:24]} Bg7
{[%clk 01:30:17]} {[%emt 00:01:14]} 5. Nf3 {[%clk 01:27:48]} {[%emt 00:00:50]}
O-O {[%clk 01:30:13]} {[%emt 00:00:34]} 6. Bc4+ {[%clk 01:25:56]} {[%emt
00:02:23]} d5 {[%clk 01:28:58]} {[%emt 00:01:45]} 7. Bb3 {[%clk 01:25:15]}
{[%emt 00:01:10]} Nc6 {[%clk 01:28:01]} {[%emt 00:01:28]} 8. Nbd2 {[%clk
01:22:19]} {[%emt 00:03:26]} b6 {[%clk 01:20:26]} {[%emt 00:08:05]} 9. Qe2
{[%clk 01:17:02]} {[%emt 00:05:48]} Ne4 {[%clk 01:11:21]} {[%emt 00:09:34]} 10.
Qd3 {[%clk 01:10:58]} {[%emt 00:06:27]} e6 {[%clk 01:05:13]} {[%emt 00:06:44]}
11. Qb5 {[%clk 01:01:31]} {[%emt 00:09:55]} Bb7 {[%clk 01:01:13]} {[%emt
00:04:32]} 12. Qd3 {[%clk 00:51:06]} {[%emt 00:10:56]} a5 {[%clk 00:55:25]}
{[%emt 00:06:18]} 13. Ba4 {[%clk 00:49:07]} {[%emt 00:02:27]} g5 {[%clk
00:51:21]} {[%emt 00:04:36]} 14. Bg3 {[%clk 00:46:18]} {[%emt 00:03:05]} Nxg3
{[%clk 00:50:23]} {[%emt 00:01:42]} 15. hxg3 {[%clk 00:41:31]} {[%emt
00:05:18]} g4 {[%clk 00:45:30]} {[%emt 00:05:23]} 16. Ng1 {[%clk 00:36:15]}
{[%emt 00:05:41]} Ba6 {[%clk 00:41:45]} {[%emt 00:04:19]} 17. Bb5 {[%clk
00:33:13]} {[%emt 00:03:30]} Bxb5 {[%clk 00:40:36]} {[%emt 00:01:41]} 18. Qxb5
{[%clk 00:33:33]} {[%emt 00:00:11]} Qd6 {[%emt 00:02:41]} 19. Ne2 {[%clk
00:28:16]} {[%emt 00:05:43]} e5 {[%clk 00:37:15]} {[%emt 00:01:43]} 20. Qb3
{[%clk 00:24:41]} {[%emt 00:04:02]} a4 {[%clk 00:36:19]} {[%emt 00:01:30]} 21.
Qc2 {[%clk 00:22:28]} {[%emt 00:02:40]} exd4 {[%clk 00:33:34]} {[%emt
00:03:18]} 22. cxd4 {[%clk 00:19:11]} {[%emt 00:03:46]} Nb4 {[%clk 00:29:19]}
{[%emt 00:04:44]} 23. Qc3 {[%clk 00:15:26]} {[%emt 00:04:15]} c5 {[%clk
00:28:01]} {[%emt 00:01:50]} 24. a3 {[%clk 00:13:19]} {[%emt 00:02:37]} Nc6
{[%clk 00:27:32]} {[%emt 00:00:58]} 25. Qd3 {[%clk 00:12:34]} {[%emt 00:01:12]}
Rae8 {[%clk 00:24:29]} {[%emt 00:03:37]} 26. Kf1 {[%clk 00:10:31]} {[%emt
00:02:32]} cxd4 {[%clk 00:23:20]} {[%emt 00:01:40]} 27. Nxd4 {[%clk 00:10:25]}
{[%emt 00:00:36]} Nxd4 {[%clk 00:23:01]} {[%emt 00:00:49]} 28. exd4 {[%clk
00:10:43]} {[%emt 00:00:12]} Qf6 {[%clk 00:21:51]} {[%emt 00:01:40]} 29. Rd1
{[%clk 00:08:05]} {[%emt 00:03:06]} Qxd4 {[%clk 00:21:04]} {[%emt 00:01:18]} 30.
Qxd4 {[%clk 00:06:34]} {[%emt 00:02:02]} Bxd4 {[%clk 00:20:54]} {[%emt
00:00:39]} 31. Rb1 {[%clk 00:05:17]} {[%emt 00:01:42]} Re6 {[%clk 00:19:14]}
{[%emt 00:02:14]} 32. Kg1 {[%clk 00:04:32]} {[%emt 00:01:16]} Re2 {[%clk
00:18:54]} {[%emt 00:00:50]} 33. Nf1 {[%clk 00:04:13]} {[%emt 00:00:49]} Rxf2
{[%clk 00:18:30]} {[%emt 00:00:53]} 34. Kh2 {[%clk 00:03:44]} {[%emt 00:00:59]}
Rf6 {[%clk 00:18:28]} {[%emt 00:00:32]} 35. Ne3 {[%clk 00:02:09]} {[%emt
00:02:06]} Bxe3 {[%clk 00:18:44]} {[%emt 00:00:13]} 36. Rbe1 {[%clk 00:02:14]}
{[%emt 00:00:24]} Re2 {[%clk 00:18:10]} {[%emt 00:01:05]} 0-1

[Event "Minior-SM 2025"]
[Site "Uppsala, Sweden"]
[Date "2025.07.01"]
[Round "2.4"]
[White "Andreasson, Leo"]
[Black "Madej, Anton"]
[Result "1-0"]
[TimeControl "90 min for 40 move + 30 min with an increment of 30 sec starting move 1"]
[WhiteFideId "1768980"]
[BlackFideId "1796887"]
[WhiteElo "1636"]
[BlackElo "1582"]

1. Nf3 {[%clk 01:30:51]} {[%emt 00:00:08]} d5 {[%clk 01:30:44]} {[%emt
00:00:17]} 2. e3 {[%clk 01:30:03]} {[%emt 00:01:18]} Nc6 {[%clk 01:30:48]}
{[%emt 00:00:26]} 3. c4 {[%clk 01:30:24]} {[%emt 00:00:09]} e6 {[%clk
01:30:32]} {[%emt 00:00:45]} 4. Nc3 {[%clk 01:30:27]} {[%emt 00:00:27]} Nf6
{[%clk 01:30:36]} {[%emt 00:00:27]} 5. d4 {[%clk 01:28:22]} {[%emt 00:02:35]}
Bb4 {[%clk 01:30:29]} {[%emt 00:00:37]} 6. Bd2 {[%emt 00:03:01]} b6 {[%clk
01:25:28]} {[%emt 00:03:01]} 7. Qa4 {[%clk 01:23:05]} {[%emt 00:05:46]} Bd7
{[%clk 01:22:29]} {[%emt 00:03:29]} 8. Qb3 {[%clk 01:12:36]} {[%emt 00:10:59]}
Bxc3 {[%clk 01:19:33]} {[%emt 00:03:26]} 9. Bxc3 {[%clk 01:07:14]} {[%emt
00:05:52]} O-O {[%clk 01:17:15]} {[%emt 00:02:47]} 10. Be2 {[%clk 01:04:41]}
{[%emt 00:03:03]} Ne4 {[%clk 01:10:08]} {[%emt 00:07:38]} 11. cxd5 {[%clk
00:58:52]} {[%emt 00:06:19]} Nxc3 {[%clk 01:08:54]} {[%emt 00:01:44]} 12. bxc3
{[%clk 00:58:56]} {[%emt 00:00:26]} Na5 {[%clk 01:08:07]} {[%emt 00:01:17]} 13.
Qc2 {[%clk 00:56:33]} {[%emt 00:02:53]} exd5 {[%clk 01:08:16]} {[%emt
00:00:21]} 14. Bd3 {[%clk 00:55:43]} {[%emt 00:01:19]} h6 {[%clk 01:03:24]}
{[%emt 00:05:23]} 15. h4 {[%clk 00:52:07]} {[%emt 00:04:06]} Re8 {[%clk
01:00:37]} {[%emt 00:03:16]} 16. Ne5 {[%clk 00:45:55]} {[%emt 00:06:43]} c5
{[%clk 00:57:37]} {[%emt 00:03:30]} 17. Bh7+ {[%clk 00:43:07]} {[%emt
00:03:18]} Kf8 {[%clk 00:57:37]} {[%emt 00:00:30]} 18. Bf5 {[%clk 00:42:46]}
{[%emt 00:00:50]} Bxf5 {[%clk 00:56:20]} {[%emt 00:01:48]} 19. Qxf5 {[%clk
00:43:08]} {[%emt 00:00:08]} Kg8 {[%clk 00:51:27]} {[%emt 00:05:23]} 20. Qxf7+
{[%clk 00:40:24]} {[%emt 00:03:13]} Kh8 {[%clk 00:51:36]} {[%emt 00:00:21]} 21.
Qg6 {[%clk 00:39:01]} {[%emt 00:01:53]} Rxe5 {[%clk 00:48:06]} {[%emt
00:04:01]} 22. dxe5 {[%clk 00:39:02]} {[%emt 00:00:28]} Qe7 {[%clk 00:47:18]}
{[%emt 00:01:18]} 23. e6 {[%clk 00:38:33]} {[%emt 00:00:59]} Rd8 {[%clk
00:45:51]} {[%emt 00:01:58]} 24. Qf7 {[%clk 00:38:03]} {[%emt 00:01:00]} Qxf7
{[%clk 00:45:12]} {[%emt 00:01:09]} 25. exf7 {[%clk 00:38:23]} {[%emt
00:00:10]} Rf8 {[%clk 00:44:00]} {[%emt 00:01:42]} 26. Rd1 {[%clk 00:38:36]}
{[%emt 00:00:17]} Rxf7 {[%clk 00:44:08]} {[%emt 00:00:21]} 27. Rxd5 {[%clk
00:38:04]} {[%emt 00:01:02]} Nb7 {[%clk 00:42:22]} {[%emt 00:02:16]} 28. Ke2
{[%clk 00:38:11]} {[%emt 00:00:24]} a5 {[%clk 00:41:39]} {[%emt 00:01:13]} 29.
Rhd1 {[%clk 00:35:30]} {[%emt 00:03:10]} 1-0

[Event "Minior-SM 2025"]
[Site "Uppsala, Sweden"]
[Date "2025.07.01"]
[Round "3.1"]
[White "Nivstrand Wikdahl, Sion"]
[Black "Andreasson, Leo"]
[Result "0-1"]
[TimeControl "90 min for 40 move + 30 min with an increment of 30 sec starting move 1"]
[WhiteFideId "1781537"]
[BlackFideId "1768980"]
[WhiteElo "1604"]
[BlackElo "1636"]

1. Nf3 {[%clk 01:30:58]} {[%emt 00:00:02]} d5 {[%clk 01:30:33]} {[%emt
00:00:27]} 2. e3 {[%clk 01:31:11]} {[%emt 00:00:17]} Nf6 {[%clk 01:30:05]}
{[%emt 00:00:58]} 3. c4 {[%clk 01:30:43]} {[%emt 00:00:58]} c6 {[%clk
01:29:51]} {[%emt 00:00:43]} 4. Nc3 {[%clk 01:29:52]} {[%emt 00:01:22]} Bf5
{[%clk 01:29:10]} {[%emt 00:01:10]} 5. d4 {[%clk 01:29:17]} {[%emt 00:01:05]}
e6 {[%clk 01:27:56]} {[%emt 00:01:44]} 6. a3 {[%clk 01:26:35]} {[%emt
00:03:13]} Be7 {[%clk 01:24:49]} {[%emt 00:03:37]} 7. b4 {[%clk 01:21:45]}
{[%emt 00:05:20]} Nbd7 {[%clk 01:14:04]} {[%emt 00:11:15]} 8. c5 {[%clk
01:17:02]} {[%emt 00:05:12]} b6 {[%clk 01:05:13]} {[%emt 00:09:22]} 9. Bd3
{[%clk 01:11:50]} {[%emt 00:05:43]} Bxd3 {[%clk 01:04:06]} {[%emt 00:01:36]} 10.
Qxd3 {[%clk 01:12:06]} {[%emt 00:00:14]} a5 {[%clk 00:58:04]} {[%emt 00:06:32]}
11. Bb2 {[%clk 01:10:07]} {[%emt 00:02:29]} Qc7 {[%clk 00:55:24]} {[%emt
00:03:10]} 12. O-O {[%clk 01:08:46]} {[%emt 00:01:51]} O-O {[%clk 00:52:20]}
{[%emt 00:03:34]} 13. Rfe1 {[%clk 01:05:05]} {[%emt 00:04:10]} Rfb8 {[%clk
00:49:00]} {[%emt 00:03:51]} 14. Rab1 {[%clk 01:00:19]} {[%emt 00:05:16]} axb4
{[%clk 00:46:09]} {[%emt 00:03:20]} 15. axb4 {[%clk 01:00:15]} {[%emt
00:00:35]} bxc5 {[%clk 00:45:15]} {[%emt 00:01:24]} 16. bxc5 {[%clk 01:00:20]}
{[%emt 00:00:25]} e5 {[%clk 00:44:24]} {[%emt 00:01:21]} 17. Nd2 {[%clk
00:55:44]} {[%emt 00:05:05]} e4 {[%clk 00:42:54]} {[%emt 00:02:01]} 18. Qe2
{[%clk 00:54:44]} {[%emt 00:01:30]} Ne8 {[%clk 00:29:39]} {[%emt 00:13:45]} 19.
f3 {[%clk 00:52:38]} {[%emt 00:02:35]} f5 {[%clk 00:29:56]} {[%emt 00:00:14]}
20. Rf1 {[%clk 00:51:21]} {[%emt 00:01:47]} Nef6 {[%clk 00:28:33]} {[%emt
00:01:53]} 21. fxe4 {[%clk 00:50:15]} {[%emt 00:01:36]} fxe4 {[%clk 00:28:33]}
{[%emt 00:00:30]} 22. g4 {[%clk 00:47:55]} {[%emt 00:02:49]} h6 {[%clk
00:28:16]} {[%emt 00:00:47]} 23. Qg2 {[%clk 00:45:11]} {[%emt 00:03:14]} h5
{[%clk 00:24:48]} {[%emt 00:03:58]} 24. gxh5 {[%clk 00:45:00]} {[%emt
00:00:41]} Nxh5 {[%clk 00:25:01]} {[%emt 00:00:17]} 25. Qg4 {[%clk 00:42:16]}
{[%emt 00:03:14]} Ndf6 {[%clk 00:24:39]} {[%emt 00:00:53]} 26. Qg6 {[%clk
00:40:43]} {[%emt 00:02:02]} Qd7 {[%clk 00:24:14]} {[%emt 00:00:56]} 27. Qf5
{[%clk 00:40:19]} {[%emt 00:00:54]} Qxf5 {[%clk 00:23:54]} {[%emt 00:00:49]} 28.
Rxf5 {[%clk 00:40:29]} {[%emt 00:00:20]} g6 {[%clk 00:23:38]} {[%emt 00:00:47]}
29. Re5 {[%clk 00:39:30]} {[%emt 00:01:29]} Kf7 {[%clk 00:22:15]} {[%emt
00:01:53]} 30. Rg5 {[%clk 00:34:47]} {[%emt 00:05:12]} Ng7 {[%clk 00:20:42]}
{[%emt 00:02:03]} 31. Nf1 {[%clk 00:32:44]} {[%emt 00:02:33]} Nfh5 {[%clk
00:17:42]} {[%emt 00:03:30]} 32. Rg2 {[%clk 00:31:57]} {[%emt 00:01:17]} Nf5
{[%clk 00:17:26]} {[%emt 00:00:47]} 33. Rf2 {[%clk 00:27:32]} {[%emt 00:04:55]}
Kg7 {[%clk 00:16:36]} {[%emt 00:01:19]} 34. Bc1 {[%clk 00:22:09]} {[%emt
00:05:53]} Nh4 {[%clk 00:09:56]} {[%emt 00:07:10]} 35. Rxb8 {[%clk 00:21:20]}
{[%emt 00:01:19]} Rxb8 {[%clk 00:10:18]} {[%emt 00:00:08]} 36. Rb2 {[%clk
00:21:04]} {[%emt 00:00:46]} Nf3+ {[%clk 00:07:52]} {[%emt 00:02:55]} 37. Kh1
{[%clk 00:17:39]} {[%emt 00:03:55]} Rh8 {[%clk 00:07:13]} {[%emt 00:01:10]} 38.
Ne2 {[%clk 00:14:23]} {[%emt 00:03:45]} Rc8 {[%clk 00:02:00]} {[%emt 00:05:44]}
39. Rb7 {[%clk 00:13:44]} {[%emt 00:01:08]} Kf7 {[%clk 00:01:50]} {[%emt
00:00:41]} 40. Nfg3 {[%clk 00:09:17]} {[%emt 00:04:55]} Nf6 {[%clk 00:00:45]}
{[%emt 00:01:36]} 41. Ng1 {[%clk 00:08:12]} {[%emt 00:01:35]} Ng4 {[%clk
00:24:54]} {[%emt 00:06:21]} 42. Nxf3 {[%clk 00:37:26]} {[%emt 00:01:16]} exf3
{[%clk 00:25:16]} {[%emt 00:00:08]} 43. e4 {[%clk 00:27:04]} {[%emt 00:10:52]}
Ra8 {[%clk 00:21:50]} {[%emt 00:03:57]} 44. h3 {[%clk 00:21:59]} {[%emt
00:05:34]} Rh8 {[%clk 00:14:03]} {[%emt 00:08:16]} 45. Kg1 {[%clk 00:16:20]}
{[%emt 00:06:09]} Rxh3 {[%clk 00:13:05]} {[%emt 00:01:29]} 46. Nh1 {[%clk
00:16:14]} {[%emt 00:00:36]} dxe4 {[%clk 00:09:03]} {[%emt 00:04:32]} 47. Bg5
{[%clk 00:13:39]} {[%emt 00:03:04]} Nf6 {[%clk 00:07:57]} {[%emt 00:01:37]} 48.
Bxf6 {[%clk 00:13:54]} {[%emt 00:00:15]} Kxf6 {[%clk 00:08:17]} {[%emt
00:00:10]} 49. Nf2 {[%clk 00:14:11]} {[%emt 00:00:13]} Rg3+ {[%clk 00:08:15]}
{[%emt 00:00:32]} 50. Kf1 {[%clk 00:14:34]} {[%emt 00:00:08]} Ke6 {[%clk
00:07:41]} {[%emt 00:01:04]} 51. Nxe4 {[%clk 00:13:59]} {[%emt 00:01:05]} Rg4
{[%clk 00:07:56]} {[%emt 00:00:15]} 52. Nd2 {[%clk 00:13:44]} {[%emt 00:00:44]}
Rxd4 {[%clk 00:07:37]} {[%emt 00:00:49]} 53. Nxf3 {[%clk 00:13:42]} {[%emt
00:00:32]} Rf4 {[%clk 00:07:35]} {[%emt 00:00:32]} 54. Ke2 {[%clk 00:13:33]}
{[%emt 00:00:39]} Bxc5 {[%clk 00:07:31]} {[%emt 00:00:32]} 55. Rg7 {[%clk
00:11:36]} {[%emt 00:02:28]} Rg4 {[%clk 00:07:08]} {[%emt 00:00:54]} 56. Kd3
{[%clk 00:10:30]} {[%emt 00:01:36]} Bd6 {[%clk 00:06:29]} {[%emt 00:01:10]} 57.
Nd4+ {[%clk 00:09:15]} {[%emt 00:01:45]} Kd5 {[%clk 00:06:36]} {[%emt
00:00:22]} 58. Ne2 {[%clk 00:08:46]} {[%emt 00:00:59]} Ke6 {[%clk 00:06:13]}
{[%emt 00:00:54]} 59. Nd4+ {[%clk 00:08:28]} {[%emt 00:00:47]} Rxd4+ {[%clk
00:06:16]} {[%emt 00:00:27]} 0-1